{"text_format":"2","workbook":"xlsx","n_sheets":3,"sheets":["SkiptoConfig","跳转参数详情","解锁参数详情"],"not_rendered":{"charts":0,"images":0,"macros":0,"external_links":0,"defined_names":2,"comments":0,"pivot_tables":0},"unopened":[],"bounds":{"document_bytes":16777216,"sheet_cells":100000,"run_cost":"one","rows_first":2000,"rows_last":500,"rows_between":2000,"halvings":0,"cell_chars":16384,"cell_head_chars":4096},"cells_cut":0,"cells_raw":0,"read":"whole","date_system":"1900"}

{"sheet":"SkiptoConfig","index":0,"n_rows":18,"n_cols":13,"rows_kept":18,"cut":false,"hidden":false,"merged":[]}
["ID","SkipType","SkipID",null,null,"SkipArguments","SkipTxt",null,"UnlockType","UnlockPara1","UnlockPara2"]
["int","int","int",null,null,"int[]","int",null,"int","int[]","int"]
[]
["ID","跳转类型","跳转ID\n填写方法见附页","跳转到哪里","需要填什么参数","跳转参数\n填写方法见附页","跳转来源语言表ID","玩家看到的显示文字","该跳转解锁条件类型","该跳转解锁条件参数","该跳转在不可跳转时给玩家看的【达成条件】语言表","该条件的解锁条件","该跳转在不可跳转时给玩家看的【达成条件】文本"]
[1,1,1,{"$f":"VLOOKUP(C5,跳转参数详情!A:B,2,FALSE)","v":"功法"},{"$f":"VLOOKUP(C5,跳转参数详情!A:C,3,FALSE)","v":0},-1,10107,"功法",null,null,null,{"$f":"IF(I5=\"\",\"\",VLOOKUP(I5,解锁参数详情!A:B,2,FALSE))","v":""}]
[2,1,2,{"$f":"VLOOKUP(C6,跳转参数详情!A:B,2,FALSE)","v":"法宝"},{"$f":"VLOOKUP(C6,跳转参数详情!A:C,3,FALSE)","v":0},-1,10108,"法宝",null,null,null,{"$f":"IF(I6=\"\",\"\",VLOOKUP(I6,解锁参数详情!A:B,2,FALSE))","v":""}]
[3,1,3,{"$f":"VLOOKUP(C7,跳转参数详情!A:B,2,FALSE)","v":"洞府"},{"$f":"VLOOKUP(C7,跳转参数详情!A:C,3,FALSE)","v":0},-1,10109,"洞府",null,null,null,{"$f":"IF(I7=\"\",\"\",VLOOKUP(I7,解锁参数详情!A:B,2,FALSE))","v":""}]
[4,1,4,{"$f":"VLOOKUP(C8,跳转参数详情!A:B,2,FALSE)","v":"商店"},{"$f":"VLOOKUP(C8,跳转参数详情!A:C,3,FALSE)","v":"ShopGroupConfig_ID"},6,10357,"兑换商店-妖丹兑换",null,null,null,{"$f":"IF(I8=\"\",\"\",VLOOKUP(I8,解锁参数详情!A:B,2,FALSE))","v":""}]
[5,1,5,{"$f":"VLOOKUP(C9,跳转参数详情!A:B,2,FALSE)","v":"使用神识"},{"$f":"VLOOKUP(C9,跳转参数详情!A:C,3,FALSE)","v":0},-1,10111,"使用神识",null,null,null,{"$f":"IF(I9=\"\",\"\",VLOOKUP(I9,解锁参数详情!A:B,2,FALSE))","v":""}]
[6,1,4,{"$f":"VLOOKUP(C10,跳转参数详情!A:B,2,FALSE)","v":"商店"},{"$f":"VLOOKUP(C10,跳转参数详情!A:C,3,FALSE)","v":"ShopGroupConfig_ID"},4,10355,"白嫖代金券"]
[7,1,4,{"$f":"VLOOKUP(C11,跳转参数详情!A:B,2,FALSE)","v":"商店"},{"$f":"VLOOKUP(C11,跳转参数详情!A:C,3,FALSE)","v":"ShopGroupConfig_ID"},6,10356,"兑换商店-每日特惠"]
[8,1,7,{"$f":"VLOOKUP(C12,跳转参数详情!A:B,2,FALSE)","v":"神识列表"},{"$f":"VLOOKUP(C12,跳转参数详情!A:C,3,FALSE)","v":0},-1,10358,"主线剧情"]
[9,1,4,{"$f":"VLOOKUP(C13,跳转参数详情!A:B,2,FALSE)","v":"商店"},{"$f":"VLOOKUP(C13,跳转参数详情!A:C,3,FALSE)","v":"ShopGroupConfig_ID"},4,10359,"白嫖氪金-新手礼包"]
[10,1,8,{"$f":"VLOOKUP(C14,跳转参数详情!A:B,2,FALSE)","v":"探宝"},{"$f":"VLOOKUP(C14,跳转参数详情!A:C,3,FALSE)","v":0},-1,10360,"探宝"]
[11,1,9,{"$f":"VLOOKUP(C15,跳转参数详情!A:B,2,FALSE)","v":"岁酬"},{"$f":"VLOOKUP(C15,跳转参数详情!A:C,3,FALSE)","v":0},-1,10361,"岁酬"]
[12,1,7,{"$f":"VLOOKUP(C16,跳转参数详情!A:B,2,FALSE)","v":"神识列表"},{"$f":"VLOOKUP(C16,跳转参数详情!A:C,3,FALSE)","v":0},-1,10362,"支线剧情"]
[13,1,8,{"$f":"VLOOKUP(C17,跳转参数详情!A:B,2,FALSE)","v":"探宝"},{"$f":"VLOOKUP(C17,跳转参数详情!A:C,3,FALSE)","v":0},-1,10363,"探宝-200抽挑战"]
[14,1,6,{"$f":"VLOOKUP(C18,跳转参数详情!A:B,2,FALSE)","v":"命运峰"},{"$f":"VLOOKUP(C18,跳转参数详情!A:C,3,FALSE)","v":0},-1,10364,"命运峰"]

{"sheet":"跳转参数详情","index":1,"n_rows":10,"n_cols":3,"rows_kept":10,"cut":false,"hidden":false,"merged":[]}
["跳转ID","跳转功能","参数"]
[1,"功法"]
[2,"法宝"]
[3,"洞府"]
[4,"商店","ShopGroupConfig_ID"]
[5,"使用神识"]
[6,"命运峰"]
[7,"神识列表"]
[8,"探宝"]
[9,"岁酬"]

{"sheet":"解锁参数详情","index":2,"n_rows":2,"n_cols":5,"rows_kept":2,"cut":false,"hidden":false,"merged":[]}
["跳转ID","解锁逻辑","参数1","参数2","参数3"]
[1,"需要满足unlock表中的ID解锁","UnlockID"]